Cogmind - Beta 14 @@@ ROGUE MODE // 2024.08.27 @ 01:29:35 Player: omnishade Result: Destroyed by G-47 Trooper with Particle Gun Performance ------------- Evolutions (2) 1000 Regions Visited (4) 800 Robots Destroyed (58) 290 Value Destroyed (1858) 1858 Prototype IDs (10) 200 Alien Tech Used (0) 0 Bonus (267) 267 TOTAL SCORE: 4415 Bonus ------- High Alert Combat Kills 75 Follower Combat Kills 192 Cogmind --------- Core Integrity 0/550 Matter 300/300 Energy 100/100 System Corruption 0% Temperature Cool (9) Movement Core (200) Ox3 Location -8/Materials Parts ------- > --- POWER (1) -------- (None) > --- PROPULSION (4) --- (None) > --- UTILITY (4) ------ Medium Storage Unit Improved Signal Interpreter Core Analyzer > --- WEAPON (2) ------- (None) > --- INVENTORY (10) --- Improved Deuterium Engine Sensor Array Seismic Detector Improved Targeting Computer Hardened Light Armor Plating Hardened Light Armor Plating Graphene Brace Datajack Peak State ------------ > --- POWER ------------ Cold Fusion Reactor > --- PROPULSION ------- Aluminum Leg VSS Leg Improved Carbon-fiber Leg Improved Carbon-fiber Leg > --- UTILITY ---------- Medium Storage Unit Improved Sensor Array Improved Signal Interpreter Medium Armor Plating > --- WEAPON ----------- Precision Beam Rifle High-powered Shotgun > --- INVENTORY -------- Improved Deuterium Engine Aluminum Leg Sensor Array Seismic Detector Improved Targeting Computer Core Analyzer Hardened Light Armor Plating Hardened Light Armor Plating Datajack Mining Laser [Rating: 35] Favorites ----------- Power Heavy Ion Engine Engine Heavy Ion Engine Reactor Cold Fusion Reactor Propulsion Compact Wheel Leg Improved Carbon-fiber Leg Wheel Compact Wheel Hover Unit Improved Hover Unit Flight Unit Improved Flight Unit Utility Medium Storage Unit Device Improved Sensor Array Storage Medium Storage Unit Processor Improved Signal Interpreter Protection Hardened Light Armor Plating Weapon High-powered Shotgun Energy Gun Precision Beam Rifle Energy Cannon Advanced Beam Cannon Ballistic Gun High-powered Shotgun Launcher Grenade Launcher Special Weapon Mining Laser Special Melee Weapon Datajack Build | -11 -10 -9 -9 -8 ------- Run | Yrd Mat Mat Sto Mat Slots Evolved 4 | . . 2 . 2 Power . | . . . . . Propulsion 2 | . . 1 . 1 Utility 2 | . . 1 . 1 Weapon . | . . . . . Parts Attached 82 | 8 19 15 12 28 Power 6 | 1 1 1 1 2 Engine 4 | 1 1 1 . 1 Core . | . . . . . Reactor 2 | . . . 1 1 Propulsion 32 | 4 9 5 3 11 Treads . | . . . . . Leg 10 | 2 1 . . 7 Wheel 16 | 2 7 5 2 . Hover 3 | . . . . 3 Flight 3 | . 1 . 1 1 Utility 24 | 1 5 5 4 9 Device 8 | . 2 1 2 3 Storage 4 | 1 2 . . 1 Processor 3 | . . 1 . 2 Hackware . | . . . . . Protection 9 | . 1 3 2 3 Artifact . | . . . . . Weapon 20 | 2 4 4 4 6 Energy Gun 1 | . . . . 1 Energy Cannon 1 | . . 1 . . Ballistic Gun 12 | 2 2 3 2 3 Ballistic Cannon . | . . . . . Launcher 2 | . 1 . . 1 Special Weapon 3 | . . . 2 1 Impact Weapon . | . . . . . Slashing Weapon . | . . . . . Piercing Weapon . | . . . . . Special Melee Weapon 1 | . 1 . . . Unidentified Prototypes 6 | . . 2 2 2 Parts Lost 18 | . 4 . 1 13 Power 2 | . 1 . . 1 Propulsion 8 | . 1 . 1 6 Utility 2 | . . . . 2 Weapon 6 | . 2 . . 4 Highest Loss Streak 4 | . 3 . 1 4 To Critical Strikes . | . . . . . Average Slot Usage (%) 89 | . 87 97 99 78 Engine 7 | . 12 11 10 . Reactor 2 | . . . . 8 Leg 3 | . . . . 10 Wheel 20 | . 25 33 26 2 Hover 1 | . . . . 4 Flight 2 | . 1 . 6 . Device 8 | . 4 8 9 10 Storage 11 | . 14 11 11 9 Processor 5 | . . 3 2 12 Protection 6 | . 6 8 9 3 Energy Gun 1 | . . . . 5 Ballistic Gun 13 | . 13 18 17 7 Launcher 3 | . 6 2 . 3 Special Weapon 1 | . . . 4 . Peak Build Rating 35 | 6 8 18 27 35 Average Rating 18 | 4 6 15 21 27 On Entrance 11 | . 6 8 17 24 Naked Turns . | . . . . . Heaviest Build 45 | 13 23 31 40 45 Greatest Support 58 | 26 32 48 42 58 Greatest Overweight (x) 10 | . . . 2 10 Average Overweight (x) . | . . . . 2 Largest Inventory Capacity 10 | 8 10 10 10 10 Average Capacity 9 | 7 8 10 10 10 Most Carried 10 | 5 10 10 10 10 Average Carried 8 | 1 7 9 9 9 Final Capacity 10 | 8 10 10 10 10 Final Carried 10 | 2 10 9 9 8 Class Distribution -------------------- 62% | Mutant 27% | Scavenger-Mutant 9% | Commander-Mutant Dominant Class ---------------- Mutant | -10/Materials Mutant | -9/Materials Mutant | -9/Storage Scavenger-Mutant | -8/Materials Resources | -11 -10 -9 -9 -8 ----------- Run | Yrd Mat Mat Sto Mat Matter Collected 1763 | 219 245 503 364 432 Remotely . | . . . . . Salvage Created 1786 | . 198 551 344 693 Parts 119 | . 23 39 18 39 Haulers Intercepted 2 | . 1 1 . . Recyclers Shooed . | . . . . . Parts Field Recycled . | . . . . . Retrieved Matter . | . . . . . Parts Self-Destructed . | . . . . . Prevented . | . . . . . Kills | -11 -10 -9 -9 -8 ------- Run | Yrd Mat Mat Sto Mat Combat Hostiles Destroyed 49 | . 9 17 9 14 Guns 41 | . 6 15 9 11 AOE 7 | . 3 2 . 2 Classes Destroyed 10 | . 5 1 . 4 Builder 2 | . 1 . . 1 Hauler 2 | . 1 1 . . Operator 1 | . . . . 1 Watcher 4 | . 1 2 . 1 Swarmer 13 | . 8 5 . . Grunt 20 | . 1 8 4 7 Sentry 10 | . . 4 5 1 Specialist 4 | . . . . 4 Hunter 1 | . . . . 1 Heavy 1 | . . . . 1 Best Kill Streak 5 | . 3 3 2 5 Combat Bots Only 4 | . 3 3 2 4 Max Kills in Single Turn 3 | . 3 2 1 2 Gunslinging 1 | . . 1 . . Exploded 3 | . 3 1 . 1 Melee . | . . . . . Uniques/NPCs Destroyed . | . . . . . Combat | -11 -10 -9 -9 -8 -------- Run | Yrd Mat Mat Sto Mat Hostile Shots Fired 278 | . 49 49 38 142 Missed 78 | . 13 17 9 39 Damage Taken 3436 | . 674 279 417 2066 Core 879 | . 218 58 46 557 Absorbed by Shields 68 | . . 68 . . Core Remaining (%) 62 | 100 12 . 74 . Volleys Fired 180 | . 42 33 49 56 Largest 2 | . 2 2 2 2 Hottest 161 | . 40 50 100 161 Shots Fired 291 | . 55 61 78 97 Gun 254 | . 54 58 61 81 Cannon . | . . . . . Launcher 16 | . 1 3 . 12 Special 21 | . . . 17 4 Kinetic 212 | . 54 58 61 39 Thermal 63 | . . . 17 46 Explosive 4 | . 1 3 . . Electromagnetic 12 | . . . . 12 Robot Hit Streak 13 | . 5 9 6 13 Robot Miss Streak 6 | . 3 4 6 5 Penetration Max . | . . . . . Secondary Targets 4 | . 1 3 . . Max Gunslinging Chain 1 | . 1 1 . . Shots Hit Robots 194 | . 42 47 36 69 Core Hits 99 | . 16 31 17 35 Critical Kills 1 | . . 1 . . Critical Parts Destroyed . | . . . . . Critical Strikes 2 | . . 1 . 1 Burn 1 | . . . . 1 Destroy 1 | . . 1 . . Melee Attacks 7 | . 7 . . . Impact . | . . . . . Slashing . | . . . . . Piercing . | . . . . . Sneak Attacks 7 | . 7 . . . Combat Hostiles . | . . . . . Follow-up Attacks . | . . . . . Damage Inflicted 3769 | . 521 1001 706 1541 Guns 2949 | . 339 813 705 1092 Cannons . | . . . . . Explosions 761 | . 182 188 . 391 Melee . | . . . . . Ramming 11 | . . . 1 10 Kinetic 2387 | . 339 813 705 530 Thermal 646 | . . . . 646 Explosive 370 | . 182 188 . . Electromagnetic 355 | . . . . 355 Impact . | . . . . . Slashing . | . . . . . Piercing . | . . . . . Highest Corruption . | . . . . . Average Corruption . | . . . . . Corruption Purged . | . . . . . Corruption Blocked . | . . . . . Overload Shots . | . . . . . Overflow Damage 128 | . 90 . . 38 Projectiles . | . . . . . Explosions 128 | . 90 . . 38 Melee . | . . . . . Knockbacks . | . . . . . Impact . | . . . . . Kinetic . | . . . . . Secondary . | . . . . . Self-Inflicted Damage 253 | . 215 . . 38 Shots 6 | . 2 . . 4 Rammed 1 | . . . 1 . Targets Rammed 6 | . . . 1 5 Kicked 5 | . . . . 5 Crushed . | . . . . . Highest Temperature 254 | . 24 29 254 43 Average Temperature 36 | . 8 10 61 13 Received Heat Transfer 930 | . 81 105 132 612 Effects 1 | . . . 1 . Energy Bleed 1 | . . . 1 . Siege Activations . | . . . . . Robots Corrupted 1 | . . . . 1 Combat Hostiles 1 | . . . . 1 Parts Fried 2 | . . . . 2 Impact Corruptions . | . . . . . Robots Melted . | . . . . . Combat Hostiles . | . . . . . Parts Melted . | . . . . . Heat Transferred 1495 | . . . . 1495 Parts Sabotaged . | . . . . . Parts Stolen . | . . . . . Parts Stripped . | . . . . . Power Chain Reactions 2 | . . . . 2 Alert | -11 -10 -9 -9 -8 ------- Run | Yrd Mat Mat Sto Mat Peak Influence 576 | . 228 552 576 263 Initial 232 | . . . 232 179 Average 194 | . 117 183 338 157 Maximum Alert Level 2 | . 1 2 2 1 Low Security (%) 52 | 100 75 57 19 56 Level 1 35 | . 24 31 39 43 Level 2 12 | . . 11 40 . Level 3 . | . . . . . Level 4 . | . . . . . Level 5 . | . . . . . High Security . | . . . . . Max Security . | . . . . . Squads Dispatched 19 | . 1 4 5 9 Investigation 5 | . . 3 1 1 Extermination . | . . . . . Reinforcement 8 | . 1 1 2 4 Assault . | . . . . . Garrison 6 | . . . 2 4 Intercept . | . . . . . Searches Triggered . | . . . . . Construction Impeded 1 | . . 1 . . Haulers Reinforced . | . . . . . Active Scanning Responses . | . . . . . Cargo Convoy Interrupts . | . . . . . Stealth | -11 -10 -9 -9 -8 --------- Run | Yrd Mat Mat Sto Mat Distress Signals 9 | . 1 5 3 . Communications Jammed . | . . . . . Distress Signals . | . . . . . Times Spotted 104 | . 18 32 29 25 Peak Tracking Total 10 | . 6 10 6 4 Tactical Retreats 7 | . 1 3 1 2 Traps | -11 -10 -9 -9 -8 ------- Run | Yrd Mat Mat Sto Mat Traps Triggered 3 | . . . 1 2 Indirectly . | . . . . . Trap Hack Attempts . | . . . . . Triggered . | . . . . . Disarmed . | . . . . . Reprogrammed 6 | . . 6 . . Reused 1 | . . 1 . . Traps Extracted . | . . . . . Installed . | . . . . . Triggered 1 | . . 1 . . Machines | -11 -10 -9 -9 -8 ---------- Run | Yrd Mat Mat Sto Mat Machines Disabled 5 | . 2 1 2 . Max in Single Turn 2 | . 2 1 1 . Machines Repaired . | . . . . . Machines Dismantled . | . . . . . Machines Sabotaged . | . . . . . Overloaded Fab Kills . | . . . . . Hacking | -11 -10 -9 -9 -8 --------- Run | Yrd Mat Mat Sto Mat Machines Accessed 16 | . 4 6 6 . Terminals 11 | . 2 5 4 . Fabricators . | . . . . . Repair Stations 3 | . 1 1 1 . Recycling Units 2 | . 1 . 1 . Scanalyzers . | . . . . . Garrison Access . | . . . . . Total Hacks 40 | . 10 16 14 . Successful 14 | . 2 7 5 . Failed 26 | . 8 9 9 . Catastrophic 6 | . 1 1 4 . Database Lockouts . | . . . . . Manual 1 | . . . 1 . Terminals 25 | . 2 13 10 . Fabricators . | . . . . . Repair Stations 9 | . 3 3 3 . Recycling Units 6 | . 5 . 1 . Scanalyzers . | . . . . . Garrison Access . | . . . . . Terminal Hacks 11 | . 1 6 4 . Prototype ID Bank 3 | . 1 1 1 . Open Door 2 | . . . 2 . Emergency Access Points 2 | . . 2 . . Unreport Threat 1 | . . . 1 . Locate Traps 1 | . . 1 . . Reprogram Traps 1 | . . 1 . . Recall Investigation 1 | . . 1 . . Fabricator Hacks . | . . . . . Repair Station Hacks 1 | . . 1 . . Scan Component 1 | . . 1 . . Recycling Unit Hacks 2 | . 1 . 1 . Report Inventory 2 | . 1 . 1 . Scanalyzer . | . . . . . Garrison Access Hacks . | . . . . . Unauthorized Hacks . | . . . . . Terminals . | . . . . . Fabricators . | . . . . . Repair Stations . | . . . . . Recycling Units . | . . . . . Scanalyzers . | . . . . . Garrison Access . | . . . . . Data Cores Recovered . | . . . . . Used . | . . . . . Hacking Detections 14 | . 3 5 6 . Full Trace Events 2 | . . 2 . . Feedback Events . | . . . . . Feedback Blocked . | . . . . . Robot Schematics Acquired . | . . . . . Robots Built . | . . . . . Authchips . | . . . . . Time . | . . . . . Total Robot Build Rating . | . . . . . Part Schematics Acquired . | . . . . . Parts Built . | . . . . . Authchips . | . . . . . Time . | . . . . . Total Part Build Rating . | . . . . . Parts Repaired . | . . . . . Time . | . . . . . Parts Recycled . | . . . . . Recycled Matter . | . . . . . Retrieved Matter . | . . . . . Retrieved Components . | . . . . . Parts Scanalyzed . | . . . . . Part Schematics Acquired . | . . . . . Parts Damaged . | . . . . . Bothacking | -11 -10 -9 -9 -8 ------------ Run | Yrd Mat Mat Sto Mat Used RIF Installer . | . . . . . Robots Hacked 3 | . 3 . . . Non-combat 3 | . 3 . . . Combat . | . . . . . Robot Hacks Applied 4 | . 4 . . . parse_system 1 | . 1 . . . no_distress 3 | . 3 . . . Relay Couplers Released . | . . . . . Fabnet Peak Effective % . | . . . . . Robots Rewired . | . . . . . Allies Hacked . | . . . . . Hacks Repelled . | . . . . . Allies | -11 -10 -9 -9 -8 -------- Run | Yrd Mat Mat Sto Mat Total Allies 10 | . . . 10 . Largest Group 10 | . . . 10 5 Highest-Rated Group 88 | . . . 88 48 Highest-Rated Ally 16 | . . . 16 16 Total Orders . | . . . . . Ally Attacks 86 | . . . 55 31 Total Damage 775 | . . . 517 258 Kills 14 | . . . 13 1 Allies Corrupted . | . . . . . Allies Melted . | . . . . . Intel | -11 -10 -9 -9 -8 ------- Run | Yrd Mat Mat Sto Mat Robot Analysis Total . | . . . . . Derelict Logs Recovered . | . . . . . Drone Launches 13 | . . . 13 . Drone Recoveries 3 | . . . 3 . Exploration | -11 -10 -9 -9 -8 ------------- Run | Yrd Mat Mat Sto Mat Turns Passed 3422 | 42 838 675 836 1031 Spaces Moved 2153 | 31 672 526 566 358 Core 81 | 9 . . . 72 Treads . | . . . . . Legs 181 | 4 . . . 177 Wheels 1794 | 18 672 526 566 12 Hover 94 | . . . . 94 Flight 3 | . . . . 3 Fastest Speed 50 | 50 90 86 86 105 Average Speed 115 | 82 95 89 106 205 Slowest Speed 610 | 120 100 100 130 610 Overloaded Moves . | . . . . . Propulsion Burnouts . | . . . . . Robots Hopped 4 | . . . . 4 Cave-ins Triggered . | . . . . . Exploration Rate (%) 45 | 3 84 45 69 26 Regions Visited 4 Branch Regions 1 Pre-discovered Areas . | . . . . . Known Exits Taken 1 | . . 1 . . Unknown Exits Taken 3 | 1 1 . 1 . Scrap Searched . | . . . . . Spaces Dug 4 | . . . 4 . Terrain Destroyed 83 | . 48 23 4 8 Melee . | . . . . . Projectile 5 | . . . 4 1 AOE 78 | . 48 23 . 7 Terrain Rammed . | . . . . . Walls Destroyed . | . . . . . Machines Disabled . | . . . . . Actions | -11 -10 -9 -9 -8 --------- Run | Yrd Mat Mat Sto Mat Total 2756 | 45 810 673 687 541 Wait 215 | . 42 67 38 68 Move 2141 | 30 671 525 565 350 Hop 4 | . . . . 4 Pick Up 71 | 7 21 17 10 16 Fast Attach 6 | 1 . . . 5 Attach 32 | 5 5 7 4 11 Detach 1 | . . . . 1 Swap 44 | 2 14 8 8 12 Drop 45 | . 8 16 8 13 Fire 180 | . 42 33 49 56 Melee 7 | . 7 . . . Ram 1 | . . . 1 . Kick 5 | . . . . 5 Crush . | . . . . . Escape Stasis . | . . . . . Rewire . | . . . . . Trap . | . . . . . Miscellaneous 4 | . . . 4 . Route ------- -11/Scrapyard -10/Materials (discovered 4 exits: *Mat x3 / [*Sub]) -9/Materials (discovered 2 exits: *Min / *Sto) -9/Storage -8/Materials History --------- Turn | Location | Event 5 | -11/Scrapyard | Discovered new exit (range 15) 43 | -11/Scrapyard | Entered Materials 236 | -10/Materials | Core integrity fell below 50% 236 | -10/Materials | Core integrity fell below 20% 266 | -10/Materials | Lost 3 parts (1p1n1w) 284 | -10/Materials | Discovered new exit (range 11) 326 | -10/Materials | Build established: Mutant 516 | -10/Materials | Discovered new exit (range 13) 828 | -10/Materials | Discovered new exit (range 10) 872 | -10/Materials | Discovered new exit (range 3) 881 | -10/Materials | Entered another Materials area 881 | -9/Materials | Evolved 2 slots: Propulsion x1, Utility x1 1340 | -9/Materials | Discovered new exit (range 15) 1355 | -9/Materials | Identified exit to Mines 1546 | -9/Materials | Discovered new exit (range 13) 1555 | -9/Materials | Identified exit to Storage 1556 | -9/Materials | Entered Storage 1649 | -9/Storage | Build established: Scavenger-Mutant 1934 | -9/Storage | Lost 10 allies 1994 | -9/Storage | Build established: Mutant 2042 | -9/Storage | Assisted by bots powering up and referring to "LRC-V3" 2222 | -9/Storage | Garrison activated, responded to threat 2370 | -9/Storage | Discovered new exit (range 7) 2372 | -9/Storage | Build established: Commander-Mutant 2392 | -9/Storage | Entered Materials 2392 | -8/Materials | Accompanied by 5 allies 2392 | -8/Materials | Evolved 2 slots: Propulsion x1, Utility x1 2421 | -8/Materials | Garrison activated, responded to threat 2610 | -8/Materials | Garrison activated, responded to threat 2639 | -8/Materials | Lost 3 allies 2703 | -8/Materials | Build established: Scavenger-Mutant 2949 | -8/Materials | Lost 4 parts (2n1u1w) 3290 | -8/Materials | Build established: Mutant 3370 | -8/Materials | Core integrity fell below 50% 3404 | -8/Materials | Lost 3 parts (1p2w) 3417 | -8/Materials | Core integrity fell below 20% 3423 | -8/Materials | Destroyed by G-47 Trooper with Particle Gun Last Messages --------------- K-01 Serf collects debris. Recycling unit begins matter transfer process. R-06 Scavenger inserts Com. Wheel into recycling unit. R-06 Scavenger inserts Sml. Laser into recycling unit. Recycling unit begins recycling process. Cold Fusion Reactor destroyed. Shock Bomb Launcher destroyed. K-01 Serf cleans the Recycling Unit. Prc. Beam Rifle destroyed. Kicked G-47 Trooper. Critical hit (Burn: +37). Kicked G-47 Trooper. Imp. Sensor Array destroyed. Kicked G-47 Trooper. Critical hit (Burn: +37). Kicked G-47 Trooper. Aluminum Leg destroyed. Critical hit (Burn: +37). Map ----- +----------------------------------------------------+ | ?????????????????????????????????????????????????? | | ?????????????????????????????????????????????????? | | ?????????????????????????????????????????????????? | | ?????????????????????????????????????????????????? | | ?????????????????????????????????????????????????? | | ?????????????????????????????????????????????????? | | ?????????????????????????????????????????????????? | | ?????????????????????????????????????????????????? | | ?????????????????????????????????????????????????? | | ?????????????????????????????????????????????????? | | ?????????????????????????????????????????????????? | | ?????????????????????????????????????????######### | | ?????????????????????????????#####???????# | | ?????????????????????????????# ???????# | | ?????????????????????????????# ???????# | | ?????????????????????????????# ???????# | | ?????????????????????????????# ???????# | | ?????????????????????????????# ???????# """"" | | ?????????????????????????????# ???????# """"" | | ??????????????????#??????????# ???????# """"" | | ??????????????????# ?????????# ???????######### | | ??????????????????# ????????? ???????????????? | | ??????????????????+ ##########+################# | | ??????????????????# t% | | ??????????????????# gg | | ??????????????????# @ %g a | | ??????????????????##############;######+####### | | ???????????????????????????# # #??# | | ???????????????????????????# # "" #??# | | ???????????????????????????# # "Y #??# | | ???????????????????????????# # "" #??# | | ???????????????????????????# # #??# | | ???????????????????????????# # !#??# | | ???????????????????????????# ###/####??## # | | ???????????????????????????# #?# #??????# # | | ???????????????????????????# #?# #??????# + | | ???????????????????????????##########?# #??????# # | | ??????????????????????????????????????# #??????# # | | ?????????????????????????????????????? #??????? ? | | ?????????????????????????????????????? ??????? ? | | ?????????????????????????????????????? ??????? ? | | ?????????????????????????????????????? ????????? | | ????????????????????????????????????? ????????? | | ????????????????????????????????????? """????????? | | ????????????????????????????????????? """???""???? | | ????????????????????????????????????? """ """ # | | ???????????????????????????????????? ?? | | ???????????????????????????????????? ?? | | ???????????????????????????????????? ?? | | ????????????????????????????????????#????######### | +----------------------------------------------------+ Best States ------------- Heat Dissipation 31 Energy Generation 17 Energy Capacity 280 Matter Stores 300 Matter Capacity 300 Sight Range 16 Robot Scan Range 15 Terrain Scan Density 10 Armor Coverage 525 Evasion (%) 55 Core Analysis 6 Item Schematics ----------------- None Robot Schematics ------------------ None Fabricated ------------ Nothing Alien Tech Used ----------------- None Achievements -------------- Loot Pinata Release The Drones! The More The Merrier Challenges ------------ None Game ------ Seed ShadeElectrostormMegatreads Manual? 0 Play Time 00:55:20 Cumulative 9.5 hours Start 2024.08.26 @ 23:01:03 End 2024.08.27 @ 01:29:35 Sessions 1 Manual Loads 0 Difficulty Rogue Special Mode None Game No. 11 Rogue 11 Adventurer 0 Explorer 0 Win Type - Total 0 Types 0/0/0/0/0/0/0/0/0 Lore% 4 Gallery% 17 Achievement% 15 Wizard Run 0 Options --------- Layout 1 ASCII 0 Keyboard 0 Movement Mouse Keybinds 0 Fullscreen 1 Font 32/SmallcapsGlow Map View 50x35 Zoom Use 0% Tactical HUD 0 Map Filters NONE Filters NONE Steam 1 RUN: eaf7994e-dc2a-4337-ad01-9b2525a7036c